bitfinex/quotes_BTCUSD_20250109
["timestamp","ask_amount","ask_price","bid_price","bid_amount"]
[1736451470676,1.07395236,92916.0,92915.0,0.0002343]
[1736451470883,1.07495236,92916.0,92915.0,0.0002343]
[1736451471273,0.003,92916.0,92915.0,0.0002343]
[1736451471511,0.003,92916.0,92914.0,0.20648428]
[1736451472155,0.002,92916.0,92914.0,0.20648428]
[1736451472364,0.003,92916.0,92914.0,0.20648428]
[1736451472565,0.001,92916.0,92914.0,0.20648428]
[1736451472771,1.07395236,92927.0,92914.0,0.20648428]
[1736451472977,1.07395236,92927.0,92923.0,0.215231]
[1736451474686,1.07395236,92927.0,92923.0,0.430462]
[1736451475319,1.07395236,92927.0,92923.0,0.215231]
[1736451476366,1.07395236,92927.0,92923.0,0.20623098]
[1736451476972,1.07395236,92927.0,92919.0,0.215239]
[1736451477590,1.07395236,92927.0,92913.0,8.53e-05]
[1736451477738,0.3489176,92923.0,92913.0,8.53e-05]
[1736451478130,0.215233,92923.0,92913.0,8.53e-05]
[1736451478356,0.15,92925.0,92913.0,8.53e-05]
[1736451478564,0.15,92926.0,92913.0,8.53e-05]
[1736451478770,0.15,92926.0,92918.0,0.215243]
[1736451479177,0.001,92923.0,92918.0,0.215243]
[1736451479397,0.15,92926.0,92918.0,0.215243]
[1736451479620,1.07395236,92927.0,92918.0,0.215243]
[1736451480784,0.006,92926.0,92918.0,0.215243]
[1736451480961,0.006,92926.0,92914.0,0.215252]
[1736451481117,1.07395236,92927.0,92914.0,0.215252]
[1736451481336,0.001,92926.0,92914.0,0.215252]
[1736451481549,0.001,92926.0,92917.0,0.215243]
[1736451481863,1.07395236,92927.0,92917.0,0.215243]
[1736451482098,1.07395236,92927.0,92917.0,0.40716376]
[1736451482540,1.07395236,92939.0,92924.0,0.0772]
[1736451482795,0.00014852,92934.0,92932.0,0.215209]
[1736451483401,0.00014852,92934.0,92929.0,0.215217]
[1736451483798,0.00014852,92934.0,92924.0,0.26912076]
[1736451483799,0.00014852,92934.0,92932.0,0.215209]
[1736451484577,0.00014852,92934.0,92933.0,0.00107596]
[1736451484779,0.00014852,92934.0,92932.0,0.215209]
[1736451485004,0.00014852,92934.0,92933.0,0.18137569]
[1736451485430,0.00314852,92934.0,92933.0,0.18137569]
[1736451485644,0.00014852,92934.0,92933.0,0.076]
[1736451486306,0.00014852,92934.0,92933.0,0.075]
[1736451486522,0.00114852,92934.0,92933.0,0.06799998]
[1736451486737,0.00114852,92934.0,92933.0,0.06699998]
[1736451487607,0.00214852,92934.0,92933.0,0.06699998]
[1736451487814,0.00114852,92934.0,92933.0,0.06699998]
[1736451488029,0.00014852,92934.0,92933.0,0.06499998]
[1736451488237,0.00114852,92934.0,92933.0,0.06799998]
[1736451488367,0.00014852,92934.0,92933.0,0.06599998]
[1736451488785,0.00114852,92934.0,92933.0,0.002]
[1736451489014,0.00114852,92934.0,92933.0,0.003]
[1736451489865,0.00114852,92934.0,92933.0,0.002]
[1736451490410,0.01983357,92934.0,92933.0,0.002]
[1736451491168,0.01883357,92934.0,92933.0,0.001]
[1736451491413,0.01983357,92934.0,92933.0,0.001]
[1736451491814,0.01983357,92934.0,92925.0,0.20722498]
[1736451491815,0.01883357,92934.0,92925.0,0.20722498]
[1736451492023,0.01883357,92934.0,92933.0,0.002]
[1736451492479,0.56913933,92934.0,92933.0,0.002]
[1736451492717,0.56913933,92934.0,92933.0,0.001]
[1736451493504,0.38403957,92934.0,92933.0,0.001]
[1736451493725,0.00014852,92934.0,92933.0,0.001]
[1736451494263,0.00014852,92934.0,92925.0,0.001]
[1736451494574,0.00514852,92934.0,92922.0,0.215232]
[1736451494793,0.00214852,92934.0,92917.0,0.215245]
[1736451495177,0.215222,92928.0,92909.0,0.291662]
[1736451495389,0.215223,92927.0,92909.0,0.291662]
[1736451496162,0.215223,92927.0,92909.0,0.0764]
[1736451496163,0.215233,92923.0,92909.0,0.0764]
[1736451496511,0.215233,92923.0,92910.0,0.215262]
[1736451496716,0.215253,92914.0,92897.0,0.215291]
[1736451496941,0.05641786,92913.0,92894.0,0.19336325]
[1736451497143,0.215257,92912.0,92895.0,0.430592]
[1736451497373,0.05641786,92913.0,92895.0,0.430592]
[1736451497565,0.05641786,92913.0,92900.0,0.215284]
[1736451497764,1.07395236,92930.0,92901.0,0.10537609]
[1736451497967,0.14357426,92934.0,92901.0,0.10537609]
[1736451497968,0.14357426,92934.0,92916.0,0.215247]
[1736451498168,0.14357426,92934.0,92901.0,0.10429976]
[1736451498169,0.215224,92927.0,92911.0,0.215257]
[1736451498326,0.215224,92927.0,92908.0,0.215265]
[1736451498529,1.20763696,92930.0,92909.0,0.00107617]
[1736451498729,0.001,92913.0,92909.0,0.00107617]
[1736451498929,1.07395236,92930.0,92909.0,0.00107617]
[1736451499134,1.07395236,92930.0,92914.0,0.215252]
[1736451499579,1.07395236,92930.0,92916.0,0.215248]
[1736451499831,0.215218,92929.0,92915.0,0.077]
[1736451500017,1.07395236,92930.0,92911.0,0.001]
[1736451500018,0.21522,92928.0,92911.0,0.001]
[1736451500395,0.43044,92928.0,92911.0,0.001]
[1736451500598,1.20763696,92930.0,92902.0,0.215279]
[1736451500599,0.215238,92920.0,92902.0,0.215279]
[1736451500823,0.215233,92923.0,92907.0,0.215266]
[1736451501026,0.001,92913.0,92909.0,0.001]
[1736451501302,1.20763696,92930.0,92911.0,0.215258]
[1736451501303,0.365218,92929.0,92911.0,0.215258]
[1736451501507,0.215222,92927.0,92911.0,0.20625798]
[1736451501912,0.365218,92929.0,92911.0,0.20625798]
[1736451502107,0.001,92913.0,92911.0,0.20625798]
[1736451502320,0.430459,92924.0,92903.0,0.215276]
[1736451502537,0.15,92929.0,92904.0,0.10429976]
[1736451502743,0.21522,92928.0,92912.0,0.215255]
[1736451503162,0.21522,92928.0,92907.0,0.215269]
[1736451503372,0.15,92929.0,92909.0,0.215264]
[1736451503373,0.215222,92927.0,92909.0,0.215264]
[1736451503789,0.216222,92927.0,92909.0,0.430528]
[1736451503992,0.15,92929.0,92908.0,0.10429976]
[1736451504205,1.20763696,92930.0,92915.0,0.215248]
[1736451504415,0.001,92928.0,92908.0,0.10429976]
[1736451504614,1.28916936,92930.0,92909.0,0.00107611]
[1736451504870,1.28916936,92930.0,92915.0,0.215249]
[1736451505637,1.42285396,92930.0,92915.0,0.215249]
[1736451506449,1.28916936,92930.0,92915.0,0.20624898]
[1736451506692,0.215218,92929.0,92911.0,0.215259]
[1736451507070,0.215218,92929.0,92915.0,0.001]
[1736451507850,0.21522,92928.0,92915.0,0.001]
[1736451508051,0.21522,92928.0,92911.0,0.215259]
[1736451508790,0.21522,92928.0,92915.0,0.001]
[1736451510280,0.21522,92928.0,92911.0,0.215259]
[1736451510494,0.21522,92928.0,92915.0,0.215248]
[1736451511322,0.21522,92928.0,92915.0,0.217248]
[1736451511531,0.00014852,92934.0,92916.0,0.00107617]
[1736451511741,0.00014852,92934.0,92932.0,0.215211]
[1736451513045,0.00014852,92934.0,92933.0,0.00107593]
[1736451513252,0.00014852,92934.0,92932.0,0.215211]
[1736451513443,0.00014852,92934.0,92932.0,0.217211]
[1736451513656,0.00114852,92934.0,92932.0,0.217211]
[1736451514044,0.00014852,92934.0,92933.0,0.10537568]
[1736451514248,0.00114852,92934.0,92933.0,0.10829976]
[1736451514585,0.00014852,92934.0,92933.0,0.10429976]
[1736451515031,0.00114852,92934.0,92933.0,0.10629976]
[1736451515249,0.00014852,92934.0,92933.0,0.10629976]
[1736451515469,0.00014852,92934.0,92933.0,0.18777562]
[1736451515676,0.00014852,92934.0,92933.0,0.23477562]
[1736451515876,0.00014852,92934.0,92933.0,0.23669976]
[1736451516498,0.00014852,92934.0,92933.0,0.22469974]
[1736451516723,0.215127,92968.0,92936.0,0.15]
[1736451516930,0.215127,92968.0,92952.0,0.215163]
[1736451516931,0.21513,92967.0,92952.0,0.215163]
[1736451517476,0.00049688,92968.0,92950.0,0.215169]
[1736451518295,0.215132,92966.0,92950.0,0.215169]
[1736451518759,0.430265,92966.0,92950.0,0.215169]
[1736451519760,0.431265,92966.0,92950.0,0.210169]
[1736451520245,0.430265,92966.0,92950.0,0.210169]
[1736451520625,0.433265,92966.0,92954.0,0.215159]
[1736451520827,0.431265,92966.0,92954.0,0.215159]
[1736451521003,0.431265,92966.0,92950.0,0.210169]
[1736451521004,0.215134,92965.0,92950.0,0.210169]
[1736451521682,0.430269,92965.0,92950.0,0.210169]
[1736451521848,0.215134,92965.0,92950.0,0.210169]
[1736451522060,0.215144,92961.0,92950.0,0.210169]
[1736451522272,0.215134,92965.0,92950.0,0.20116898]
[1736451522874,0.00049688,92968.0,92958.0,0.215149]
[1736451523105,0.00049688,92968.0,92966.0,0.215131]
[1736451523312,0.00049688,92968.0,92951.0,0.0201169]
[1736451523513,0.002,92965.0,92964.0,0.215135]
[1736451523723,0.00049688,92968.0,92961.0,0.215143]
[1736451523970,0.00049688,92968.0,92955.0,0.215157]
[1736451524141,0.00249688,92968.0,92943.0,0.0814]
[1736451524341,0.00249688,92968.0,92951.0,0.215165]
[1736451524545,0.215143,92962.0,92944.0,0.10429976]
[1736451525289,0.215143,92962.0,92949.0,0.21517]
[1736451525888,0.215143,92962.0,92953.0,0.215162]
[1736451526092,0.215134,92965.0,92953.0,0.215162]
[1736451526293,0.00049688,92968.0,92958.0,0.215149]
[1736451526494,0.00049688,92968.0,92958.0,0.20614898]
[1736451526669,0.00049688,92968.0,92962.0,0.21514]
[1736451527027,0.00049688,92968.0,92962.0,0.430281]
[1736451527170,0.00049688,92968.0,92962.0,0.21514]
[1736451527382,0.00049688,92968.0,92954.0,0.21516]
[1736451527607,0.00049688,92968.0,92953.0,0.0430332]
[1736451527608,0.00049688,92968.0,92967.0,0.21513]
[1736451529218,0.00049688,92968.0,92964.0,0.215136]
[1736451529816,0.00049688,92968.0,92964.0,0.430272]
[1736451530197,0.00049688,92968.0,92967.0,0.002]
[1736451531468,0.01583254,92976.0,92964.0,0.20813598]
[1736451531669,0.000149,92976.0,92964.0,0.20813598]
[1736451532596,0.000149,92976.0,92967.0,0.002]
[1736451535546,0.216258,92976.0,92965.0,0.215132]
[1736451535749,0.001149,92976.0,92969.0,0.215125]
[1736451535957,0.000149,92976.0,92966.0,0.10429976]
[1736451536161,0.002149,92976.0,92973.0,0.215116]
[1736451536357,0.000149,92976.0,92973.0,0.42123198]
[1736451537904,0.001149,92976.0,92973.0,0.20611598]
[1736451538248,0.000149,92976.0,92973.0,0.20611598]
[1736451538454,0.000149,92976.0,92973.0,0.42123198]
[1736451538660,0.000149,92976.0,92974.0,0.0636352]
[1736451538860,0.000149,92976.0,92975.0,0.215111]
[1736451539282,0.000149,92976.0,92975.0,0.31941076]
[1736451540325,0.000149,92976.0,92974.0,0.001]
[1736451541156,0.000149,92976.0,92975.0,0.002]
[1736451541357,0.000149,92976.0,92970.0,0.20812198]
[1736451541547,0.000149,92976.0,92975.0,0.001]
[1736451541937,0.000149,92976.0,92970.0,0.20812198]
[1736451542145,0.000149,92976.0,92963.0,0.215139]
[1736451542353,0.215119,92972.0,92958.0,0.757048]
[1736451542548,0.215128,92968.0,92958.0,0.215148]
[1736451542772,0.215125,92970.0,92958.0,0.430298]
[1736451543178,0.000149,92976.0,92970.0,0.001]
[1736451543381,0.000149,92976.0,92974.0,0.215112]
[1736451543538,0.000149,92976.0,92975.0,0.08337542]
[1736451543736,0.000149,92976.0,92975.0,0.18767518]
[1736451543965,0.000149,92976.0,92975.0,0.18867518]
[1736451544165,0.000149,92976.0,92975.0,0.18767518]
[1736451544383,0.000149,92976.0,92975.0,0.18659976]
[1736451545065,0.000149,92976.0,92975.0,0.10429976]
[1736451545278,0.000149,92976.0,92975.0,0.10529976]
[1736451545680,0.000149,92976.0,92975.0,0.10629976]
[1736451546087,0.000149,92976.0,92975.0,0.10529976]
[1736451546500,0.000149,92976.0,92975.0,0.09829974]
[1736451547117,0.000149,92976.0,92975.0,0.09729974]
[1736451547932,0.000149,92976.0,92975.0,0.10129974]
[1736451548746,0.000149,92976.0,92975.0,0.10237512]
[1736451549288,0.000149,92976.0,92975.0,0.10237507]
[1736451549700,0.000149,92976.0,92975.0,0.10129974]
[1736451550433,0.000149,92976.0,92975.0,0.006]
[1736451551260,0.01575767,92976.0,92975.0,0.002]
[1736451551470,0.215111,92975.0,92965.0,0.20613198]
[1736451551691,0.001149,92976.0,92959.0,0.215148]
[1736451551915,0.000149,92976.0,92959.0,0.215148]
[1736451552120,0.215119,92972.0,92959.0,0.215148]
[1736451552338,0.001149,92976.0,92954.0,0.215158]
[1736451552544,0.1336846,92970.0,92951.0,0.215164]
[1736451552757,0.215143,92962.0,92951.0,0.215164]
[1736451553191,0.215146,92960.0,92937.0,0.215198]
[1736451553404,0.215159,92955.0,92943.0,0.215185]
[1736451553616,0.215148,92959.0,92946.0,0.215176]
[1736451553834,1.07395236,92964.0,92955.0,0.215156]
[1736451554508,1.07395236,92964.0,92944.0,0.10429976]
[1736451554509,0.002,92960.0,92945.0,0.215181]
[1736451554720,0.002,92960.0,92959.0,0.215148]
[1736451554929,0.21512,92971.0,92959.0,0.215148]
[1736451555130,0.001,92964.0,92959.0,0.430296]
[1736451555562,0.21512,92971.0,92959.0,0.430296]
[1736451556412,0.21512,92971.0,92959.0,0.42129598]
[1736451556822,0.27947229,92974.0,92960.0,0.215146]
[1736451557303,0.49458729,92974.0,92953.0,0.215161]
[1736451557505,0.003,92971.0,92960.0,0.215144]
[1736451557687,0.215123,92970.0,92960.0,0.215144]
[1736451558526,0.5639316,92970.0,92955.0,0.215157]
[1736451558727,0.3488076,92970.0,92959.0,0.215148]
[1736451558895,0.215123,92970.0,92959.0,0.215148]
[1736451559716,0.001,92971.0,92963.0,0.215139]
[1736451560474,0.01575729,92974.0,92963.0,0.215139]
[1736451560673,1.28921236,92976.0,92963.0,0.215139]
[1736451561047,0.000149,92976.0,92964.0,0.04410434]
[1736451561257,0.000149,92976.0,92964.0,0.1053754]
[1736451561462,0.000149,92976.0,92973.0,0.20611498]
[1736451561683,0.000149,92976.0,92973.0,0.42123098]
[1736451561874,0.000149,92976.0,92975.0,0.215111]
[1736451562086,0.004149,92976.0,92975.0,0.36891076]
[1736451562443,0.001149,92976.0,92975.0,0.36891076]
[1736451562646,0.000149,92976.0,92975.0,0.36891076]
[1736451563892,0.001149,92976.0,92975.0,0.36891076]
[1736451564051,0.000149,92976.0,92975.0,0.36891076]
[1736451564460,0.001149,92976.0,92975.0,0.37891076]
[1736451564913,0.001149,92976.0,92975.0,0.37591076]
[1736451565358,0.002149,92976.0,92975.0,0.37891076]
[1736451566036,0.002149,92976.0,92975.0,0.63321052]
[1736451566247,0.002149,92976.0,92975.0,0.85621052]
[1736451566454,0.002149,92976.0,92975.0,0.9328105]
[1736451567062,0.002149,92976.0,92975.0,0.82851074]
[1736451568319,0.002149,92976.0,92975.0,1.02158573]
[1736451568490,1e-06,92976.0,92975.0,1.02158573]
[1736451568705,1e-06,92976.0,92975.0,0.82851074]
[1736451568903,6e-07,92978.0,92977.0,0.35]
[1736451569107,1e-08,92978.0,92977.0,0.66439952]
[1736451569665,1e-08,92978.0,92977.0,0.67243631]
[1736451570457,1e-08,92978.0,92977.0,0.68043631]
[1736451570888,1e-08,92978.0,92977.0,1.22233631]
[1736451571038,1e-08,92978.0,92977.0,1.22633631]
[1736451572286,1e-08,92978.0,92977.0,1.03063655]
[1736451573097,1e-08,92978.0,92977.0,1.02259976]
[1736451575138,0.0001706,93023.0,93008.0,0.215034]
[1736451575344,8.546e-05,93014.0,93008.0,0.215034]
[1736451576360,8.546e-05,93014.0,93008.0,0.20603398]
[1736451576798,0.00508546,93014.0,93008.0,0.20703398]
[1736451578164,0.00708546,93014.0,93008.0,0.20703398]
[1736451581167,0.00708546,93014.0,93011.0,0.215026]
[1736451581368,0.00708546,93014.0,93013.0,0.215023]
[1736451581961,8.546e-05,93014.0,93013.0,0.31932276]
[1736451582180,8.546e-05,93014.0,93013.0,0.31032274]
[1736451582392,0.00208546,93014.0,93013.0,0.31032274]
[1736451582598,0.00208546,93014.0,93013.0,0.38436101]
[1736451583314,0.00208546,93014.0,93013.0,0.32503333]
[1736451583724,4.6e-07,93014.0,93013.0,1.22163333]
[1736451583931,0.0001706,93023.0,93013.0,1.22163333]
[1736451583932,6e-07,93027.0,93026.0,0.487993]
[1736451584125,6e-07,93027.0,93026.0,1.31089276]
[1736451584338,6e-07,93027.0,93026.0,1.41519252]
[1736451585349,0.0010006,93027.0,93026.0,1.44278245]
[1736451585764,6e-07,93027.0,93026.0,1.43378245]
[1736451585964,2e-07,93033.0,93032.0,0.464979]
[1736451586163,2e-07,93033.0,93032.0,0.69657852]
[1736451586643,2e-07,93033.0,93032.0,0.6875785]
[1736451586860,0.0001706,93047.0,93046.0,0.09099998]
[1736451587074,0.0001706,93047.0,93046.0,0.47784676]
[1736451587281,0.00031952,93047.0,93046.0,0.47784676]
[1736451587487,0.00031952,93047.0,93046.0,0.55622723]
[1736451588564,0.00031952,93047.0,93046.0,0.57059042]
[1736451588760,0.00131952,93047.0,93046.0,0.6705904]
[1736451588971,0.00031952,93047.0,93046.0,0.6895904]
[1736451589183,0.00031952,93047.0,93046.0,0.7696904]
[1736451589389,0.00131952,93047.0,93046.0,0.7736904]
[1736451589602,0.00031952,93047.0,93046.0,0.7646904]
[1736451590937,0.00131952,93047.0,93046.0,0.7696904]
[1736451591233,0.00031952,93047.0,93046.0,0.7646904]
[1736451591434,0.00031952,93047.0,93046.0,0.7736904]
[1736451591601,0.00131952,93047.0,93046.0,0.7706904]
[1736451591848,0.214857,93086.0,93073.0,0.214883]
[1736451592058,0.214857,93086.0,93049.0,0.21494]
[1736451592059,0.214869,93080.0,93049.0,0.21494]
[1736451592212,0.214869,93080.0,93064.0,0.214905]
[1736451592433,0.214864,93082.0,93068.0,0.42979]
[1736451592657,0.214873,93079.0,93069.0,0.214893]
[1736451593132,0.214864,93082.0,93069.0,0.214893]
[1736451594782,0.0491,93073.0,93056.0,0.214924]
[1736451594989,0.1336846,93070.0,93056.0,0.214924]
[1736451595208,0.15,93069.0,93048.0,0.21494]
[1736451595538,0.15,93069.0,93024.0,0.1]
[1736451595539,0.214929,93054.0,93041.0,0.214958]
[1736451595746,1.15535236,93059.0,93025.0,0.0761]
[1736451595863,0.214922,93057.0,93028.0,0.214989]
[1736451596107,0.214922,93057.0,93030.0,0.214984]
[1736451596312,0.0814,93059.0,93016.0,0.30128456]
[1736451596313,0.1336846,93050.0,93016.0,0.19280456]
[1736451596517,0.29989976,93056.0,93013.0,0.2410057]
[1736451596518,0.214999,93024.0,93013.0,0.20602198]
[1736451596717,0.214986,93029.0,93014.0,0.10429976]
[1736451596938,0.214986,93029.0,93015.0,0.215019]
[1736451597141,0.214986,93029.0,93014.0,0.10429976]
[1736451597142,0.0456,93029.0,93014.0,0.10429976]
[1736451597337,0.0456,93029.0,93020.0,0.215007]
[1736451597586,0.0456,93029.0,93023.0,0.214998]
[1736451599647,0.0456,93029.0,93026.0,0.214991]
[1736451600405,0.21497,93037.0,93026.0,0.214991]
[1736451600606,0.214977,93033.0,93023.0,0.001]
[1736451600760,0.3486616,93033.0,93023.0,0.001]
[1736451601008,0.3486616,93033.0,93016.0,0.215016]
[1736451601009,0.1336846,93033.0,93016.0,0.215016]
[1736451601369,0.214982,93031.0,93026.0,0.001]
[1736451601571,0.214982,93031.0,93019.0,0.20800698]
[1736451601930,0.214982,93031.0,93023.0,0.001]
[1736451602499,0.214982,93031.0,93019.0,0.20800698]
[1736451602801,0.429965,93031.0,93019.0,0.20800698]
[1736451603001,0.002,93031.0,93016.0,0.215016]
[1736451603182,0.214984,93030.0,93016.0,0.215016]
[1736451603588,0.214994,93026.0,93016.0,0.215016]
[1736451604337,1.20763696,93026.0,93013.0,0.00014892]
[1736451604752,1.20763696,93026.0,93015.0,0.215019]
[1736451604976,1.07395236,93026.0,93013.0,0.00014892]
[1736451605177,1.07395236,93026.0,93013.0,0.00122392]
[1736451605348,1.07395236,93026.0,93013.0,0.00014892]
[1736451605550,1.07395236,93026.0,93019.0,0.215009]
[1736451605706,1.07495236,93026.0,93019.0,0.215009]
[1736451606132,1.07395236,93026.0,93019.0,0.215009]
[1736451606521,1.07395236,93026.0,93019.0,0.20600898]
[1736451607485,1.07395236,93026.0,93013.0,0.00114892]
[1736451607486,0.21497,93036.0,93023.0,0.214999]
[1736451607663,0.214972,93035.0,93023.0,0.214999]
[1736451608132,0.1336846,93033.0,93021.0,0.215003]
[1736451608344,0.214981,93032.0,93021.0,0.215003]
[1736451608940,0.1336846,93033.0,93025.0,0.214994]
[1736451609355,0.1336846,93033.0,93022.0,0.215002]
[1736451609589,0.001,93032.0,93022.0,0.215002]
[1736451610196,0.001,93032.0,93023.0,0.215]
[1736451610724,0.214979,93032.0,93022.0,0.215002]
[1736451611362,0.214979,93032.0,93022.0,0.216002]
[1736451611475,0.214979,93032.0,93022.0,0.20700198]
[1736451611684,0.214979,93032.0,93023.0,0.001]
[1736451611883,0.214979,93032.0,93022.0,0.20600198]
[1736451612085,0.214979,93032.0,93022.0,0.20700198]
[1736451612337,0.214979,93032.0,93022.0,0.20800198]
[1736451613244,0.214979,93032.0,93022.0,0.20700198]
[1736451613939,1.28892136,93037.0,93025.0,0.214994]
[1736451614544,1.07395236,93037.0,93029.0,0.214985]
[1736451615191,1.07395236,93037.0,93022.0,0.001]
[1736451615192,1.07395236,93037.0,93023.0,0.214999]
[1736451615393,0.214983,93031.0,93020.0,0.215006]
[1736451616040,0.215019,93015.0,93004.0,0.215043]
[1736451616265,0.0477,93014.0,92995.0,0.0001702]
[1736451616466,0.1251,93014.0,92995.0,0.0001702]
[1736451616668,0.215034,93009.0,92995.0,0.215064]
[1736451616816,1.28898636,93009.0,92995.0,0.21514946]
[1736451617224,1.28898636,93009.0,92998.0,0.215056]
[1736451618396,1.28898636,93009.0,92995.0,0.00108546]
[1736451618397,1.07395236,93009.0,92995.0,0.00108546]
[1736451618847,0.215047,93003.0,92998.0,0.002]
[1736451619257,0.215035,93008.0,92998.0,0.003]
[1736451619471,0.215035,93008.0,92998.0,0.001]
[1736451619683,0.43007,93008.0,92998.0,0.001]
[1736451620127,0.215039,93006.0,92998.0,0.001]
[1736451620344,0.215049,93002.0,92998.0,0.001]
[1736451620553,0.215045,93004.0,92995.0,0.00208546]
[1736451620787,0.215045,93004.0,92998.0,0.003]
[1736451621413,0.215045,93004.0,92995.0,8.546e-05]
[1736451621592,0.215045,93004.0,92992.0,0.20915644]
[1736451621824,0.215045,93004.0,92998.0,0.003]
[1736451622029,0.215045,93004.0,92992.0,0.20915644]
[1736451622386,0.215045,93004.0,92998.0,0.007]
[1736451622589,0.215045,93004.0,92998.0,0.002]
[1736451623791,0.215045,93004.0,92995.0,0.215063]
[1736451624052,0.215037,93007.0,92995.0,0.215063]
[1736451624782,0.215037,93007.0,92998.0,0.005]
[1736451624987,0.215037,93007.0,92998.0,0.002]
[1736451625198,0.215056,92999.0,92998.0,0.002]
[1736451625406,0.215056,92999.0,92988.0,0.21508]
[1736451625407,0.00014874,93008.0,92995.0,0.003]
[1736451625612,0.215039,93006.0,92995.0,0.004]
[1736451625812,0.215049,93002.0,92995.0,0.001]
[1736451626013,0.215039,93006.0,92998.0,0.003]
[1736451626549,0.215039,93006.0,92995.0,0.001]
[1736451626769,0.00314874,93008.0,92998.0,0.01290708]
[1736451626978,0.00314874,93008.0,92995.0,0.10429976]
[1736451627400,0.00314874,93008.0,92998.0,0.001]
[1736451627609,0.00314874,93008.0,92999.0,0.215056]
[1736451627992,0.00014874,93008.0,92999.0,0.215056]
[1736451628394,0.002,93006.0,92999.0,0.215056]
[1736451628555,0.00014874,93008.0,92999.0,0.215056]
[1736451628753,0.00014874,93008.0,92999.0,0.430112]
[1736451628955,0.00114874,93008.0,92999.0,0.430112]
[1736451629174,0.21618374,93008.0,92999.0,0.215056]
[1736451629601,0.00114874,93008.0,92999.0,0.215056]
[1736451630172,0.215063,92996.0,92984.0,0.215089]
[1736451630410,1.20763696,93000.0,92975.0,0.294309]
[1736451630621,0.215065,92995.0,92981.0,0.31956596]
[1736451631212,0.1336846,92991.0,92981.0,0.0001702]
[1736451631419,0.1336846,92991.0,92985.0,0.002]
[1736451631420,1.20763696,92991.0,92985.0,0.002]
[1736451631626,0.215079,92989.0,92975.0,0.20827918]
[1736451631988,0.430158,92989.0,92981.0,0.005]
[1736451632191,0.215079,92989.0,92981.0,0.005]
[1736451632375,0.215079,92989.0,92978.0,0.215102]
[1736451632606,0.215087,92986.0,92985.0,0.002]
[1736451633056,0.215079,92989.0,92975.0,0.20827918]
[1736451633261,0.215079,92989.0,92981.0,0.002]
[1736451633661,0.215088,92986.0,92975.0,0.215109]
[1736451634095,0.215079,92989.0,92985.0,0.001]
[1736451634309,0.23288242,92989.0,92985.0,0.001]
[1736451634506,0.23288242,92989.0,92979.0,0.215102]
[1736451634880,0.23288242,92989.0,92972.0,0.215118]
[1736451635091,0.1336846,92982.0,92975.0,0.003]
[1736451635332,0.215103,92979.0,92975.0,0.003]
[1736451635554,1.50415836,92979.0,92975.0,0.003]
[1736451635801,0.215106,92977.0,92975.0,0.001]
[1736451636455,0.215106,92977.0,92956.0,0.215154]
[1736451636456,1.07395236,92979.0,92961.0,0.00107564]
[1736451636666,0.0476,92991.0,92973.0,0.215114]
[1736451636667,0.215087,92986.0,92973.0,0.215114]
[1736451636864,0.01780342,92989.0,92981.0,0.215097]
[1736451637068,1.07395236,92990.0,92981.0,0.215097]
[1736451637277,1.09159775,92990.0,92981.0,0.215097]
[1736451637479,1.09159775,92990.0,92981.0,0.214097]
[1736451637686,1.07395236,92990.0,92981.0,0.214097]
[1736451637890,0.215054,93000.0,92988.0,0.215079]
[1736451638112,0.01727099,93000.0,92992.0,0.215072]
[1736451638325,0.001,92990.0,92989.0,0.215079]
[1736451638495,0.002,92990.0,92989.0,0.215079]
[1736451638906,0.001,92990.0,92989.0,0.215079]
[1736451639359,0.001,92990.0,92989.0,0.2796041]
[1736451639674,0.004,93000.0,92999.0,0.215056]
[1736451639883,0.006,93000.0,92999.0,0.215056]
[1736451640304,0.004,93000.0,92999.0,0.215056]
[1736451641075,0.01773594,93011.0,93003.0,0.215044]
[1736451641278,0.00014877,93011.0,93003.0,0.215044]
[1736451642135,0.00014877,93011.0,93003.0,0.20604398]
[1736451642670,0.43008,93006.0,93003.0,0.001]
[1736451642891,1.28899236,93006.0,92993.0,0.215068]
[1736451644511,1.28999236,93006.0,92993.0,0.215068]
[1736451645305,0.1336846,93003.0,92976.0,0.215109]
[1736451645520,0.15,93005.0,92986.0,0.215086]
[1736451646179,0.215049,93002.0,92989.0,0.215077]
[1736451646590,0.215049,93002.0,92989.0,0.20607698]
[1736451647959,0.15,93005.0,92993.0,0.215069]
[1736451648161,0.365044,93005.0,92993.0,0.215069]
[1736451648769,0.366044,93005.0,92993.0,0.215069]
[1736451649052,0.15,93004.0,92988.0,0.21508]
[1736451649268,0.215059,92998.0,92988.0,0.21508]
[1736451650478,0.215059,92998.0,92988.0,0.21608]
[1736451651663,0.215059,92998.0,92988.0,0.20907998]
[1736451652272,0.215076,92991.0,92988.0,0.003]
[1736451652448,0.215076,92991.0,92988.0,0.001]
[1736451652652,0.215076,92991.0,92979.0,0.215101]
[1736451653810,0.001,92991.0,92983.0,0.215092]
[1736451654189,0.001,92991.0,92988.0,0.215079]
[1736451655124,0.002,92991.0,92988.0,0.430159]
[1736451655339,0.002,92991.0,92988.0,0.215079]
[1736451655548,0.001,92991.0,92988.0,0.215079]
[1736451655705,0.45223623,93000.0,92988.0,0.218079]
[1736451655902,0.001,92991.0,92988.0,0.218079]
[1736451656539,0.45223623,93000.0,92988.0,0.20607898]
[1736451656791,0.215065,92995.0,92983.0,0.215092]
[1736451657203,0.215056,92999.0,92986.0,0.215084]
[1736451657743,0.215056,92999.0,92988.0,0.001]
[1736451657985,0.215056,92999.0,92988.0,0.004]
[1736451658393,0.430112,92999.0,92988.0,0.001]
[1736451658596,0.432112,92999.0,92988.0,0.001]
[1736451658799,0.432112,92999.0,92986.0,0.215084]
[1736451658978,0.215058,92998.0,92986.0,0.215084]
[1736451659595,0.218056,92999.0,92984.0,0.215089]
[1736451659751,0.218057,92999.0,92990.0,0.215074]
[1736451659952,0.002,92999.0,92990.0,0.0430157]